[Event "Torneo Nuevo Centro. Jornada 8"]
[Site "Chess.com"]
[Date "2020.08.07"]
[Round "3"]
[White "Bercaru, Vlad Ionut"]
[Black "Bascuñana Sánchez, Pablo"]
[Result "1/2-1/2"]
[WhiteElo "1862"]
[BlackElo "1652"]
[TimeControl "180+2"]
[EndTime "11:03:35 PDT"]
[Termination "Partida en tablas por mutuo acuerdo"]

1. c4 {[%clk 0:03:01.8]} 1... Nf6 {[%clk 0:03:00]} 2. Nc3 {[%clk 0:03:02.5]}
2... g6 {[%clk 0:03:00.5]} 3. Nf3 {[%clk 0:03:02.6]} 3... Bg7 {[%clk 0:03:00.9]}
4. g3 {[%clk 0:03:03.9]} 4... O-O {[%clk 0:03:00.4]} 5. Bg2 {[%clk 0:03:04.9]}
5... Nc6 {[%clk 0:03:00.3]} 6. O-O {[%clk 0:03:05.2]} 6... d6 {[%clk 0:03:00.4]}
7. d3 {[%clk 0:03:06.4]} 7... e5 {[%clk 0:02:57.4]} 8. Bg5 {[%clk 0:03:06.9]}
8... h6 {[%clk 0:02:55.5]} 9. Bxf6 {[%clk 0:03:07.2]} 9... Bxf6 {[%clk
0:02:54.1]} 10. Nd5 {[%clk 0:03:07.8]} 10... Bg7 {[%clk 0:02:53.3]} 11. Rb1
{[%clk 0:03:08.1]} 11... f5 {[%clk 0:02:53.2]} 12. b4 {[%clk 0:03:06.1]} 12...
Be6 {[%clk 0:02:52.6]} 13. Nd2 {[%clk 0:03:05.9]} 13... Rb8 {[%clk 0:02:38.6]}
14. f4 {[%clk 0:02:56.6]} 14... exf4 {[%clk 0:02:36.1]} 15. Nxf4 {[%clk
0:02:53.4]} 15... Bf7 {[%clk 0:02:35.2]} 16. Kh1 {[%clk 0:02:44.1]} 16... g5
{[%clk 0:02:30.3]} 17. Nd5 {[%clk 0:02:42.1]} 17... Be6 {[%clk 0:02:17.3]} 18.
b5 {[%clk 0:02:35.8]} 18... Ne5 {[%clk 0:02:16.1]} 19. Nf3 {[%clk 0:02:28.6]}
19... Ng4 {[%clk 0:02:11]} 20. h3 {[%clk 0:02:12.1]} 20... Nf6 {[%clk
0:02:09.2]} 21. Nxf6+ {[%clk 0:02:08]} 21... Bxf6 {[%clk 0:02:09.4]} 22. e3
{[%clk 0:01:59.6]} 22... g4 {[%clk 0:02:04.6]} 23. hxg4 {[%clk 0:01:55.2]} 23...
fxg4 {[%clk 0:02:04.8]} 24. Nd4 {[%clk 0:01:54.4]} 24... Bd7 {[%clk 0:01:58]}
25. Bd5+ {[%clk 0:01:47.7]} 25... Kh7 {[%clk 0:01:53.5]} 26. Ne6 {[%clk
0:01:36.2]} 26... Bxe6 {[%clk 0:01:53.7]} 27. Bxe6 {[%clk 0:01:37.2]} 27... h5
{[%clk 0:01:49.4]} 28. Kg2 {[%clk 0:01:24.7]} 28... Qe8 {[%clk 0:01:49.2]} 29.
Bf5+ {[%clk 0:01:20.8]} 29... Kh8 {[%clk 0:01:47]} 30. Be4 {[%clk 0:01:20]}
30... Qe7 {[%clk 0:01:43.2]} 31. Rh1 {[%clk 0:01:16.2]} 31... Qf7 {[%clk
0:01:36.7]} 32. Qxg4 {[%clk 0:01:12.3]} 32... h4 {[%clk 0:01:19.9]} 33. Qg6
{[%clk 0:00:59.9]} 33... Qxg6 {[%clk 0:01:16]} 34. Bxg6 {[%clk 0:01:01.8]} 34...
Rg8 {[%clk 0:01:13.7]} 35. Kf2 {[%clk 0:00:49.9]} 35... Rxg6 {[%clk 0:01:08.8]}
36. gxh4 {[%clk 0:00:50.9]} 36... Rh6 {[%clk 0:01:08]} 37. Ke2 {[%clk
0:00:47.8]} 37... Rg8 {[%clk 0:01:04.2]} 38. Rbf1 {[%clk 0:00:44.5]} 38... Bxh4
{[%clk 0:00:50.9]} 39. Rf4 {[%clk 0:00:37.1]} 39... Bg5 {[%clk 0:00:49.1]} 40.
Rxh6+ {[%clk 0:00:29.3]} 40... Bxh6 {[%clk 0:00:48.8]} 41. Rf7 {[%clk
0:00:27.1]} 41... Rg7 {[%clk 0:00:48.5]} 42. Rf8+ {[%clk 0:00:24.7]} 42... Kh7
{[%clk 0:00:49.1]} 43. Ra8 {[%clk 0:00:25.5]} 43... Rg2+ {[%clk 0:00:45.5]} 44.
Kf3 {[%clk 0:00:24.8]} 44... Rxa2 {[%clk 0:00:45.8]} 45. Rc8 {[%clk 0:00:22]}
45... c6 {[%clk 0:00:40]} 46. bxc6 {[%clk 0:00:20.6]} 46... bxc6 {[%clk
0:00:40.4]} 47. Rxc6 {[%clk 0:00:21.4]} 47... Ra3 {[%clk 0:00:36.8]} 48. Rxd6
{[%clk 0:00:20.7]} 48... a5 {[%clk 0:00:34.9]} 49. Rd7+ {[%clk 0:00:21.3]} 49...
Kg6 {[%clk 0:00:34.8]} 50. Ke4 {[%clk 0:00:22.4]} 50... a4 {[%clk 0:00:34.9]}
51. c5 {[%clk 0:00:22]} 51... Rc3 {[%clk 0:00:31.2]} 52. Rd6+ {[%clk 0:00:21.5]}
52... Kh7 {[%clk 0:00:31.4]} 53. c6 {[%clk 0:00:21.6]} 53... a3 {[%clk
0:00:26.1]} 54. Rd7+ {[%clk 0:00:22]} 54... Kg6 {[%clk 0:00:25.5]} 55. c7 {[%clk
0:00:18.6]} 55... a2 {[%clk 0:00:25.2]} 56. Rd6+ {[%clk 0:00:17.1]} 56... Kh7
{[%clk 0:00:24.2]} 57. Ra6 {[%clk 0:00:13.8]} 57... Rxc7 {[%clk 0:00:18.1]} 58.
Rxa2 {[%clk 0:00:14.6]} 58... Re7+ {[%clk 0:00:17.5]} 59. Kd4 {[%clk 0:00:11.4]}
59... Bxe3+ {[%clk 0:00:17]} 60. Kc4 {[%clk 0:00:12.1]} 60... Rc7+ {[%clk
0:00:16.9]} 61. Kd5 {[%clk 0:00:11.3]} 61... Bh6 {[%clk 0:00:16.7]} 62. Ke4
{[%clk 0:00:11.1]} 62... Kg6 {[%clk 0:00:17]} 63. Ra6+ {[%clk 0:00:10.4]} 63...
Kg7 {[%clk 0:00:17.8]} 64. Ra4 {[%clk 0:00:07.5]} 64... Bc1 {[%clk 0:00:18]} 65.
Ra6 {[%clk 0:00:07.6]} 65... Kf7 {[%clk 0:00:18.1]} 66. Ra4 {[%clk 0:00:07.7]}
66... Bg5 {[%clk 0:00:17.8]} 67. Ra6 {[%clk 0:00:08.4]} 67... Bh4 {[%clk
0:00:18.5]} 68. Ra4 {[%clk 0:00:09.1]} 68... Bf2 {[%clk 0:00:19]} 69. Ra6 {[%clk
0:00:09.5]} 69... Re7+ {[%clk 0:00:19.7]} 70. Kf3 {[%clk 0:00:09.5]} 70... Bc5
{[%clk 0:00:16.9]} 71. Ra5 {[%clk 0:00:10]} 71... Bb6 {[%clk 0:00:16.7]} 72.
Rf5+ {[%clk 0:00:11]} 72... Kg6 {[%clk 0:00:16.8]} 73. Rb5 {[%clk 0:00:11.5]}
73... Re6 {[%clk 0:00:15.4]} 74. Kf4 {[%clk 0:00:10.3]} 74... Be3+ {[%clk
0:00:14.6]} 75. Kf3 {[%clk 0:00:09.8]} 75... Bg5 {[%clk 0:00:14.2]} 1/2-1

[Event "Torneo Nuevo Centro. Jornada 8"]
[Site "Chess.com"]
[Date "2020.08.07"]
[Round "4"]
[White "Birnoveanu, Petru"]
[Black "Miranda Calvo, Max Rodrigo"]
[Result "1-0"]
[WhiteElo "1669"]
[BlackElo "1346"]
[TimeControl "180+2"]
[EndTime "11:05:55 PDT"]
[Termination "Victoria de piculet por abandono"]

1. e4 {[%clk 0:03:01.9]} 1... e5 {[%clk 0:03:00.2]} 2. Bc4 {[%clk 0:03:00.2]}
2... Bc5 {[%clk 0:02:55.8]} 3. Nf3 {[%clk 0:02:59.8]} 3... Nc6 {[%clk
0:02:42.5]} 4. O-O {[%clk 0:02:59.6]} 4... d6 {[%clk 0:02:41.8]} 5. Nc3 {[%clk
0:02:58.5]} 5... Bg4 {[%clk 0:02:40.6]} 6. Na4 {[%clk 0:02:56.8]} 6... Nd4
{[%clk 0:02:39.3]} 7. Be2 {[%clk 0:02:56]} 7... Nxe2+ {[%clk 0:02:39.7]} 8. Qxe2
{[%clk 0:02:55.7]} 8... Bb6 {[%clk 0:02:33.1]} 9. h3 {[%clk 0:02:55.9]} 9...
Bxf3 {[%clk 0:02:32.1]} 10. Qxf3 {[%clk 0:02:55.5]} 10... Ne7 {[%clk 0:02:33.6]}
11. Nxb6 {[%clk 0:02:52.9]} 11... axb6 {[%clk 0:02:35.5]} 12. d3 {[%clk
0:02:53]} 12... O-O {[%clk 0:02:36.2]} 13. Qg3 {[%clk 0:02:50.7]} 13... Ng6
{[%clk 0:02:33.8]} 14. Bg5 {[%clk 0:02:46.8]} 14... f6 {[%clk 0:02:33.4]} 15.
Be3 {[%clk 0:02:47]} 15... Kh8 {[%clk 0:02:32.5]} 16. h4 {[%clk 0:02:47.1]}
16... h5 {[%clk 0:02:29.8]} 17. Qxg6 {[%clk 0:02:46.9]} 1

[Event "Torneo Nuevo Centro. Jornada 8"]
[Site "Chess.com"]
[Date "2020.08.07"]
[Round "4"]
[White "Vicent Lázaro, Elena"]
[Black "Fente Fernandez, Jose Ignacio"]
[Result "0-1"]
[WhiteElo "672"]
[BlackElo "1463"]
[TimeControl "180+2"]
[EndTime "11:06:07 PDT"]
[Termination "Victoria de SrFente por abandono"]

1. e3 {[%clk 0:03:01.9]} 1... d5 {[%clk 0:02:59.1]} 2. c4 {[%clk 0:03:01.6]}
2... c6 {[%clk 0:02:59.6]} 3. Nc3 {[%clk 0:02:57.9]} 3... Nf6 {[%clk 0:02:59.8]}
4. Bd3 {[%clk 0:02:57.7]} 4... e6 {[%clk 0:02:57.4]} 5. Bb1 {[%clk 0:02:54.2]}
5... Nbd7 {[%clk 0:02:54.6]} 6. Qc2 {[%clk 0:02:54.4]} 6... Nb6 {[%clk
0:02:53.8]} 7. Nf3 {[%clk 0:02:54.5]} 7... Nxc4 {[%clk 0:02:49]} 8. b3 {[%clk
0:02:46.7]} 8... Nb6 {[%clk 0:02:40]} 9. Na4 {[%clk 0:02:43.5]} 9... Bd6 {[%clk
0:02:37.8]} 10. Nxb6 {[%clk 0:02:42.1]} 10... Qxb6 {[%clk 0:02:38.3]} 11. O-O
{[%clk 0:02:37]} 11... Bd7 {[%clk 0:02:35.3]} 12. a4 {[%clk 0:02:30.5]} 12... a5
{[%clk 0:02:29.1]} 13. b4 {[%clk 0:02:28]} 13... Bxb4 {[%clk 0:02:28]} 0

[Event "Torneo Nuevo Centro. Jornada 8"]
[Site "Chess.com"]
[Date "2020.08.07"]
[Round "4"]
[White "Serrano Requena, Guillem"]
[Black "Beneyto de Ramon, Guillermo"]
[Result "0-1"]
[WhiteElo "1319"]
[BlackElo "1652"]
[TimeControl "180+2"]
[EndTime "11:07:05 PDT"]
[Termination "Victoria de GUILLETE por abandono"]

1. d4 {[%clk 0:03:01.9]} 1... d5 {[%clk 0:03:00.2]} 2. Nf3 {[%clk 0:02:59.8]}
2... e6 {[%clk 0:03:00.9]} 3. c4 {[%clk 0:02:58.1]} 3... c6 {[%clk 0:03:01.4]}
4. cxd5 {[%clk 0:02:52.6]} 4... cxd5 {[%clk 0:03:01]} 5. Nc3 {[%clk 0:02:53.3]}
5... Nf6 {[%clk 0:03:01.5]} 6. Bg5 {[%clk 0:02:45.9]} 6... Be7 {[%clk
0:02:56.9]} 7. e3 {[%clk 0:02:46.1]} 7... Nc6 {[%clk 0:02:57.5]} 8. a3 {[%clk
0:02:46.3]} 8... Rb8 {[%clk 0:02:57.6]} 9. Bd3 {[%clk 0:02:46.9]} 9... b5 {[%clk
0:02:57.1]} 10. Bxb5 {[%clk 0:02:43.7]} 10... Qb6 {[%clk 0:02:43]} 11. Qa4
{[%clk 0:02:32.6]} 11... Bd7 {[%clk 0:02:40.4]} 12. O-O {[%clk 0:02:21.5]} 12...
O-O {[%clk 0:02:39.3]} 13. Ne5 {[%clk 0:02:15.4]} 13... Nxe5 {[%clk 0:02:21]}
14. Bxd7 {[%clk 0:02:14.7]} 14... Nexd7 {[%clk 0:02:16.8]} 15. Qxd7 {[%clk
0:02:14.6]} 15... Nxd7 {[%clk 0:02:16.3]} 16. Bxe7 {[%clk 0:02:13.7]} 16... Rfe8
{[%clk 0:02:16]} 17. Bb4 {[%clk 0:02:13.4]} 17... a5 {[%clk 0:02:15.1]} 18. Bd6
{[%clk 0:02:11.3]} 18... Qxd6 {[%clk 0:02:15.6]} 0

[Event "Torneo Nuevo Centro. Jornada 8"]
[Site "Chess.com"]
[Date "2020.08.07"]
[Round "4"]
[White "Bascuñana Sánchez, Pablo"]
[Black "Martínez Escandell, Alfonso"]
[Result "1-0"]
[WhiteElo "1665"]
[BlackElo "1822"]
[TimeControl "180+2"]
[EndTime "11:08:23 PDT"]
[Termination "Victoria de Pabasan2010 por tiempo"]

1. e4 {[%clk 0:03:01.9]} 1... c5 {[%clk 0:02:59.1]} 2. Nf3 {[%clk 0:03:02.7]}
2... e6 {[%clk 0:02:59.7]} 3. d3 {[%clk 0:03:02.2]} 3... Nc6 {[%clk 0:02:59.2]}
4. Be3 {[%clk 0:03:01.7]} 4... b6 {[%clk 0:02:56.7]} 5. Nbd2 {[%clk 0:03:01.9]}
5... Bb7 {[%clk 0:02:50.1]} 6. Be2 {[%clk 0:03:02.8]} 6... g6 {[%clk 0:02:48.3]}
7. O-O {[%clk 0:03:02.2]} 7... Bg7 {[%clk 0:02:47.6]} 8. c3 {[%clk 0:03:03]}
8... Nge7 {[%clk 0:00:44.7]} 9. d4 {[%clk 0:02:58.5]} 9... cxd4 {[%clk
0:00:43.7]} 10. cxd4 {[%clk 0:02:57.7]} 10... O-O {[%clk 0:00:41.7]} 11. Nc4
{[%clk 0:02:56.9]} 11... d5 {[%clk 0:00:31.8]} 12. exd5 {[%clk 0:02:56.6]} 12...
Nxd5 {[%clk 0:00:22]} 13. Qd2 {[%clk 0:02:51.1]} 13... Qd7 {[%clk 0:00:18.1]}
14. Rfd1 {[%clk 0:02:48.5]} 14... Rad8 {[%clk 0:00:16.6]} 15. Qc2 {[%clk
0:02:44]} 15... Nxe3 {[%clk 0:00:16.6]} 16. fxe3 {[%clk 0:02:44.3]} 1

[Event "Torneo Nuevo Centro. Jornada 8"]
[Site "Chess.com"]
[Date "2020.08.07"]
[Round "4"]
[White "Ainsa Jimenez, Lucas"]
[Black "Donate Peris, Jose Manuel"]
[Result "1-0"]
[WhiteElo "1071"]
[BlackElo "1526"]
[TimeControl "180+2"]
[EndTime "11:09:45 PDT"]
[Termination "Victoria de ainsaluck por abandono"]

1. e4 {[%clk 0:03:00]} 1... e6 {[%clk 0:03:00.3]} 2. d4 {[%clk 0:02:59.5]} 2...
d5 {[%clk 0:03:01.3]} 3. exd5 {[%clk 0:02:59.5]} 3... exd5 {[%clk 0:03:01.4]} 4.
Nf3 {[%clk 0:02:57.6]} 4... Bg4 {[%clk 0:03:00.2]} 5. h3 {[%clk 0:02:54.7]} 5...
Bh5 {[%clk 0:02:59.9]} 6. Be2 {[%clk 0:02:54.9]} 6... Nf6 {[%clk 0:02:59]} 7.
Ne5 {[%clk 0:02:45.5]} 7... Bxe2 {[%clk 0:02:55.7]} 8. Qxe2 {[%clk 0:02:44.5]}
8... Be7 {[%clk 0:02:54.6]} 9. O-O {[%clk 0:02:36.1]} 9... O-O {[%clk
0:02:54.4]} 10. Nf3 {[%clk 0:02:27.9]} 10... h6 {[%clk 0:02:50]} 11. Nc3 {[%clk
0:02:25.5]} 11... c6 {[%clk 0:02:49.5]} 12. Bf4 {[%clk 0:02:21.6]} 12... Re8
{[%clk 0:02:49.7]} 13. Qd3 {[%clk 0:02:10.1]} 13... Nbd7 {[%clk 0:02:48.4]} 14.
Rfe1 {[%clk 0:02:09.2]} 14... Nf8 {[%clk 0:02:44.2]} 15. Ne5 {[%clk 0:02:03.9]}
15... N6d7 {[%clk 0:02:32.8]} 16. Qg3 {[%clk 0:01:52.3]} 16... Nxe5 {[%clk
0:02:32.3]} 17. Bxe5 {[%clk 0:01:52.4]} 17... Bf6 {[%clk 0:02:32.3]} 18. Bxf6
{[%clk 0:01:40]} 18... Qxf6 {[%clk 0:02:31.7]} 19. Rxe8 {[%clk 0:01:34.8]} 19...
Rxe8 {[%clk 0:02:31.3]} 20. Rd1 {[%clk 0:01:34.1]} 20... Ne6 {[%clk 0:02:29.4]}
21. Ne2 {[%clk 0:01:31.1]} 21... Qf5 {[%clk 0:02:18.5]} 22. c3 {[%clk
0:01:23.6]} 22... Qc2 {[%clk 0:02:18.5]} 23. Re1 {[%clk 0:01:00.6]} 23... Qxb2
{[%clk 0:02:16.2]} 24. Nf4 {[%clk 0:01:00.4]} 24... Qxc3 {[%clk 0:02:14.9]} 25.
Qxc3 {[%clk 0:00:59.4]} 25... g6 {[%clk 0:01:56.9]} 26. Nxe6 {[%clk 0:00:59.7]}
26... fxe6 {[%clk 0:01:56.8]} 27. Qg3 {[%clk 0:00:57.5]} 27... Kf7 {[%clk
0:01:56.5]} 28. Re3 {[%clk 0:00:57.5]} 28... g5 {[%clk 0:01:55.8]} 29. Rf3+
{[%clk 0:00:57.9]} 29... Kg6 {[%clk 0:01:56.7]} 30. Qe5 {[%clk 0:00:53.9]} 1

[Event "Torneo Nuevo Centro. Jornada 8"]
[Site "Chess.com"]
[Date "2020.08.07"]
[Round "4"]
[White "Gutierrez Marco, Dario"]
[Black "Tormos Beltran, Maite"]
[Result "1-0"]
[WhiteElo "1809"]
[BlackElo "1426"]
[TimeControl "180+2"]
[EndTime "11:09:50 PDT"]
[Termination "Victoria de rususs por tiempo"]

1. e4 {[%clk 0:03:01.9]} 1... d5 {[%clk 0:03:00.4]} 2. exd5 {[%clk 0:03:00.8]}
2... Qxd5 {[%clk 0:03:01.6]} 3. Nc3 {[%clk 0:03:02.7]} 3... Qd6 {[%clk
0:03:02.8]} 4. d4 {[%clk 0:03:00]} 4... Nf6 {[%clk 0:03:02.6]} 5. Nf3 {[%clk
0:02:47.7]} 5... c6 {[%clk 0:03:02.4]} 6. Be2 {[%clk 0:02:49]} 6... Bf5 {[%clk
0:03:00.3]} 7. O-O {[%clk 0:02:49.6]} 7... Nbd7 {[%clk 0:03:00.8]} 8. Be3 {[%clk
0:02:50.6]} 8... Nb6 {[%clk 0:02:58.7]} 9. a4 {[%clk 0:02:50.1]} 9... Nbd5
{[%clk 0:02:57.9]} 10. Nxd5 {[%clk 0:02:50.7]} 10... cxd5 {[%clk 0:02:58.8]} 11.
c3 {[%clk 0:02:48.7]} 11... Ng4 {[%clk 0:02:56.7]} 12. Bd2 {[%clk 0:02:37.8]}
12... Be4 {[%clk 0:02:54.4]} 13. Bb5+ {[%clk 0:02:36.9]} 13... Kd8 {[%clk
0:02:46.5]} 14. g3 {[%clk 0:02:36]} 14... a6 {[%clk 0:02:44]} 15. Be2 {[%clk
0:02:35]} 15... h5 {[%clk 0:02:36.4]} 16. Rc1 {[%clk 0:02:35]} 16... h4 {[%clk
0:02:36.6]} 17. Nxh4 {[%clk 0:02:32.9]} 17... Nxh2 {[%clk 0:02:28.8]} 18. Bf4
{[%clk 0:02:29.6]} 18... Qf6 {[%clk 0:02:17]} 19. Qd2 {[%clk 0:02:00.5]} 19...
Rxh4 {[%clk 0:01:57.6]} 20. gxh4 {[%clk 0:02:02.4]} 20... Nf3+ {[%clk
0:01:39.2]} 21. Bxf3 {[%clk 0:02:01.9]} 21... Bxf3 {[%clk 0:01:40.2]} 22. Bg3
{[%clk 0:01:54.5]} 22... Qf5 {[%clk 0:01:36.2]} 23. Qf4 {[%clk 0:01:55.5]} 23...
Qh3 {[%clk 0:01:32.8]} 24. Qxf3 {[%clk 0:01:55.8]} 1

[Event "Torneo Nuevo Centro. Jornada 8"]
[Site "Chess.com"]
[Date "2020.08.07"]
[Round "4"]
[White "Montesinos Diaz, Luis"]
[Black "Lloret Ramis, Juan José"]
[Result "1-0"]
[WhiteElo "1849"]
[BlackElo "1982"]
[TimeControl "180+2"]
[EndTime "11:10:39 PDT"]
[Termination "Victoria de Gwiso_06 por tiempo"]

1. d4 {[%clk 0:03:01.9]} 1... d5 {[%clk 0:02:59.6]} 2. Nf3 {[%clk 0:03:01.5]}
2... e6 {[%clk 0:02:59.9]} 3. e3 {[%clk 0:03:01.3]} 3... Nf6 {[%clk 0:03:00.5]}
4. Bd3 {[%clk 0:03:02.2]} 4... c5 {[%clk 0:03:01.2]} 5. b3 {[%clk 0:03:02.2]}
5... Nc6 {[%clk 0:03:02]} 6. Bb2 {[%clk 0:02:56.3]} 6... cxd4 {[%clk 0:02:56.8]}
7. exd4 {[%clk 0:02:56]} 7... Bd6 {[%clk 0:02:56]} 8. O-O {[%clk 0:02:56.8]}
8... O-O {[%clk 0:02:55.7]} 9. Nbd2 {[%clk 0:02:57.9]} 9... Nb4 {[%clk 0:02:52]}
10. Be2 {[%clk 0:02:57.8]} 10... Ne4 {[%clk 0:02:50.5]} 11. a3 {[%clk
0:02:55.7]} 11... Nc6 {[%clk 0:02:51.3]} 12. c4 {[%clk 0:02:49.8]} 12... f5
{[%clk 0:02:20.4]} 13. Ne5 {[%clk 0:02:45.6]} 13... Nxe5 {[%clk 0:01:31.4]} 14.
dxe5 {[%clk 0:02:45.6]} 14... Bc5 {[%clk 0:01:31.6]} 15. Nxe4 {[%clk 0:02:43.7]}
15... fxe4 {[%clk 0:01:27]} 16. b4 {[%clk 0:02:33.7]} 16... Bb6 {[%clk
0:01:16.7]} 17. cxd5 {[%clk 0:02:29.6]} 17... exd5 {[%clk 0:01:16.3]} 18. Bd4
{[%clk 0:02:29.3]} 18... Be6 {[%clk 0:01:14]} 19. a4 {[%clk 0:02:22]} 19... a5
{[%clk 0:01:10.4]} 20. b5 {[%clk 0:02:17.2]} 20... Rc8 {[%clk 0:01:07.1]} 21.
Kh1 {[%clk 0:02:09.7]} 21... Bc5 {[%clk 0:00:48.1]} 22. f3 {[%clk 0:02:03.2]}
22... b6 {[%clk 0:00:47.8]} 23. Rc1 {[%clk 0:01:56.1]} 23... Qe7 {[%clk
0:00:27.8]} 24. Qd2 {[%clk 0:01:43.3]} 24... Bxd4 {[%clk 0:00:20.2]} 25. Qxd4
{[%clk 0:01:43.4]} 25... Rc5 {[%clk 0:00:21.4]} 26. fxe4 {[%clk 0:01:39.1]}
26... Rxf1+ {[%clk 0:00:17.7]} 27. Rxf1 {[%clk 0:01:39.2]} 27... dxe4 {[%clk
0:00:17.9]} 28. Qxe4 {[%clk 0:01:38.9]} 28... Bd5 {[%clk 0:00:15.4]} 29. Qf5
{[%clk 0:01:36.9]} 29... h6 {[%clk 0:00:14.4]} 30. Bd3 {[%clk 0:01:37]} 30... g5
{[%clk 0:00:06.8]} 31. Qg6+ {[%clk 0:01:35.5]} 31... Qg7 {[%clk 0:00:07.1]} 32.
Qe8+ {[%clk 0:01:36.2]} 1

[Event "Torneo Nuevo Centro. Jornada 8"]
[Site "Chess.com"]
[Date "2020.08.07"]
[Round "4"]
[White "Conejero Martínez, Víctor"]
[Black "Pardo Ruiz, Carlos"]
[Result "0-1"]
[WhiteElo "1369"]
[BlackElo "1675"]
[TimeControl "180+2"]
[EndTime "11:11:20 PDT"]
[Termination "Victoria de Carlitoscarlsen por abandono"]

1. d4 {[%clk 0:03:01.9]} 1... c5 {[%clk 0:02:59.5]} 2. dxc5 {[%clk 0:02:58.2]}
2... e6 {[%clk 0:02:58]} 3. e3 {[%clk 0:02:45.9]} 3... Bxc5 {[%clk 0:02:57.9]}
4. Nf3 {[%clk 0:02:46.9]} 4... d5 {[%clk 0:02:57.8]} 5. Bd2 {[%clk 0:02:41.4]}
5... Nc6 {[%clk 0:02:57.4]} 6. Bd3 {[%clk 0:02:39]} 6... Nf6 {[%clk 0:02:56.4]}
7. a3 {[%clk 0:02:39.4]} 7... O-O {[%clk 0:02:54.9]} 8. b4 {[%clk 0:02:39.8]}
8... Bd6 {[%clk 0:02:50.3]} 9. c4 {[%clk 0:02:30]} 9... dxc4 {[%clk 0:02:50]}
10. Bxc4 {[%clk 0:02:30.5]} 10... Ne5 {[%clk 0:02:50.7]} 11. Nxe5 {[%clk
0:02:29.1]} 11... Bxe5 {[%clk 0:02:52.6]} 12. Nc3 {[%clk 0:02:25.3]} 12... Bd7
{[%clk 0:02:48.6]} 13. O-O {[%clk 0:02:25.1]} 13... Bc6 {[%clk 0:02:48.7]} 14.
Rc1 {[%clk 0:02:16.3]} 14... Qd7 {[%clk 0:02:44.9]} 15. b5 {[%clk 0:02:15.5]}
15... Be4 {[%clk 0:02:43.3]} 16. Nxe4 {[%clk 0:02:15.7]} 16... Nxe4 {[%clk
0:02:44.7]} 17. Bb4 {[%clk 0:01:54]} 17... Rfd8 {[%clk 0:02:43.9]} 18. Qf3
{[%clk 0:01:49]} 18... Ng5 {[%clk 0:02:35.1]} 19. Qg4 {[%clk 0:01:34.7]} 19...
Bf6 {[%clk 0:02:25.8]} 20. Rfd1 {[%clk 0:01:30.7]} 20... Qe8 {[%clk 0:02:22.9]}
21. a4 {[%clk 0:01:24.1]} 21... h6 {[%clk 0:02:18.6]} 22. Bd3 {[%clk 0:01:17.9]}
22... Rac8 {[%clk 0:02:11.3]} 23. Rxc8 {[%clk 0:01:14.9]} 23... Rxc8 {[%clk
0:02:13.2]} 24. h4 {[%clk 0:00:57.1]} 24... Nh7 {[%clk 0:02:11.4]} 25. Qe4
{[%clk 0:00:57.4]} 25... g6 {[%clk 0:02:07.6]} 26. h5 {[%clk 0:00:57.7]} 26...
Kg7 {[%clk 0:02:04.1]} 27. hxg6 {[%clk 0:00:54.8]} 27... fxg6 {[%clk 0:02:06]}
28. Qxg6+ {[%clk 0:00:55.1]} 28... Qxg6 {[%clk 0:02:03.8]} 29. Bxg6 {[%clk
0:00:54.8]} 29... Kxg6 {[%clk 0:02:05.7]} 30. Rd7 {[%clk 0:00:54.8]} 30... Be5
{[%clk 0:02:01.8]} 31. g3 {[%clk 0:00:45.5]} 31... Rc7 {[%clk 0:01:59]} 32. Rd8
{[%clk 0:00:37.9]} 32... Rc4 {[%clk 0:01:54.4]} 33. Bd6 {[%clk 0:00:27.7]} 33...
Bxd6 {[%clk 0:01:51.8]} 34. Rxd6 {[%clk 0:00:29.1]} 34... Kf5 {[%clk 0:01:52.3]}
35. Rd7 {[%clk 0:00:26.7]} 35... Ng5 {[%clk 0:01:51.8]} 36. Rxb7 {[%clk
0:00:25.7]} 36... Kg4 {[%clk 0:01:51.9]} 37. Kg2 {[%clk 0:00:19.7]} 37... Rxa4
{[%clk 0:01:40.6]} 38. Rc7 {[%clk 0:00:16]} 38... Rb4 {[%clk 0:01:39.9]} 39. Rc5
{[%clk 0:00:16.6]} 39... Rb2 {[%clk 0:01:33.3]} 40. Kf1 {[%clk 0:00:13.2]} 40...
Kf3 {[%clk 0:01:33]} 41. Ke1 {[%clk 0:00:13.4]} 41... Rb1+ {[%clk 0:01:32.9]}
42. Kd2 {[%clk 0:00:13.6]} 42... Ne4+ {[%clk 0:01:33.7]} 43. Kd3 {[%clk
0:00:12.3]} 43... Nxc5+ {[%clk 0:01:34.5]} 0

[Event "Torneo Nuevo Centro. Jornada 8"]
[Site "Chess.com"]
[Date "2020.08.07"]
[Round "4"]
[White "Pedros Viudes, Santiago"]
[Black "Casado Andreu, David"]
[Result "1-0"]
[WhiteElo "1908"]
[BlackElo "1756"]
[TimeControl "180+2"]
[EndTime "11:11:29 PDT"]
[Termination "Victoria de ElGatoKamsky por jaque mate"]

1. d4 {[%clk 0:03:01.9]} 1... Nf6 {[%clk 0:03:00.6]} 2. Nf3 {[%clk 0:02:59.6]}
2... g6 {[%clk 0:03:01.4]} 3. Bf4 {[%clk 0:03:00.8]} 3... Bg7 {[%clk 0:03:02.7]}
4. e3 {[%clk 0:03:02]} 4... d6 {[%clk 0:03:04.1]} 5. Be2 {[%clk 0:03:03.2]} 5...
O-O {[%clk 0:03:05.5]} 6. O-O {[%clk 0:03:04.4]} 6... Nc6 {[%clk 0:03:03.5]} 7.
c4 {[%clk 0:03:05.4]} 7... Nd7 {[%clk 0:03:03.4]} 8. h3 {[%clk 0:03:04.6]} 8...
e5 {[%clk 0:03:03.9]} 9. Bh2 {[%clk 0:03:06.1]} 9... e4 {[%clk 0:02:57.2]} 10.
Nfd2 {[%clk 0:03:06.6]} 10... f5 {[%clk 0:02:58.7]} 11. Nc3 {[%clk 0:03:07.1]}
11... Ne7 {[%clk 0:02:58.6]} 12. b4 {[%clk 0:03:05.6]} 12... c6 {[%clk
0:02:59.8]} 13. Bxd6 {[%clk 0:03:05]} 13... Nf6 {[%clk 0:02:52.7]} 14. c5 {[%clk
0:03:04.9]} 14... b6 {[%clk 0:02:49.5]} 15. a4 {[%clk 0:02:38.4]} 15... Rf7
{[%clk 0:02:41.2]} 16. Bc4 {[%clk 0:02:37.7]} 16... Ned5 {[%clk 0:02:41.8]} 17.
Nxd5 {[%clk 0:02:04.6]} 17... cxd5 {[%clk 0:02:29.3]} 18. Bb5 {[%clk 0:01:55.7]}
18... Bb7 {[%clk 0:02:25.5]} 19. Bh2 {[%clk 0:01:37.9]} 19... a6 {[%clk
0:02:08.7]} 20. Be2 {[%clk 0:01:37.6]} 20... bxc5 {[%clk 0:02:03.4]} 21. bxc5
{[%clk 0:01:36.9]} 21... Bc6 {[%clk 0:02:05]} 22. Rb1 {[%clk 0:01:24.4]} 22...
Rb7 {[%clk 0:02:04.2]} 23. Qc2 {[%clk 0:01:22.3]} 23... Rab8 {[%clk 0:02:04.4]}
24. Bxb8 {[%clk 0:01:21.7]} 24... Rxb1 {[%clk 0:01:50.7]} 25. Rxb1 {[%clk
0:01:20.8]} 25... Qa5 {[%clk 0:01:52.6]} 26. Be5 {[%clk 0:00:55.5]} 26... Bxa4
{[%clk 0:01:49.7]} 27. Qa2 {[%clk 0:00:53.8]} 27... Nd7 {[%clk 0:01:38]} 28.
Qxd5+ {[%clk 0:00:49.4]} 28... Kh8 {[%clk 0:01:34.5]} 29. Bxg7+ {[%clk
0:00:21.7]} 29... Kxg7 {[%clk 0:01:35]} 30. Nc4 {[%clk 0:00:20.8]} 30... Qd2
{[%clk 0:01:24.6]} 31. Bf1 {[%clk 0:00:18.4]} 31... Bc2 {[%clk 0:01:24.6]} 32.
Rb7 {[%clk 0:00:17.8]} 32... Qd1 {[%clk 0:01:20.7]} 33. Rxd7+ {[%clk 0:00:17]}
33... Kh6 {[%clk 0:01:22.6]} 34. Qf7 {[%clk 0:00:17.8]} 34... Bd3 {[%clk
0:01:16]} 35. Qxh7+ {[%clk 0:00:18.9]} 35... Kg5 {[%clk 0:01:17.4]} 36. h4+
{[%clk 0:00:18.6]} 36... Kg4 {[%clk 0:00:51.9]} 37. Ne5# {[%clk 0:00:18.7]} 1